[Event "Fredericia WIM 2019"]
[Site "Fredericia"]
[Date "2019.06.01"]
[Round "6.6"]
[White "Kanakova, Natalie"]
[Black "Guindy, Esmat Susanne"]
[Result "1/2-1/2"]
[ECO "D00"]
[WhiteElo "2205"]
[BlackElo "2156"]
[Annotator "ChessBase"]
[PlyCount "72"]
[EventDate "2019.05.29"]
[EventType "tourn"]
[EventCountry "DEN"]
[SourceTitle "playchess.com"]
[Source "ChessBase"]
[SourceQuality "1"]
[TimeControl "40/5400+30:1800+30"]

1. d4 {[%emt 0:00:00]} d5 {[%emt 0:00:55]} 2. Bf4 {[%emt 0:00:00]} Nf6 {[%emt 0:03:56]} 3. e3 {[%emt 0:00:46]} c6 {[%emt 0:06:29]} 4. c4 {[%emt 0:05:55]} e6 {[%emt 0:06:11]} 5. Nc3 {[%emt 0:03:13]} Bd6 {[%emt 0:00:58]} 6. Bg3 {[%emt 0:03:31]} Bxg3 {[%emt 0:03:21]} 7. hxg3 {[%emt 0:00:07]} Nbd7 {[%emt 0:00:30]} 8. Nf3 {[%emt 0:01:43]} Qe7 {[%emt 0:02:19]} 9. Qc2 {[%emt 0:18:43]} b6 {[%emt 0:03:58]} 10. g4 {[%emt 0:11:41]} Nxg4 {[%emt 0:11:51]} 11. Rxh7 {[%emt 0:00:09]} Rxh7 {[%emt 0:00:34]} 12. Qxh7 {[%emt 0:00:08]} Qf8 {[%emt 0:00:05]} 13. Qc2 {[%emt 0:05:38]} Bb7 {[%emt 0:02:42]} 14. O-O-O {[%emt 0:03:16]} Ngf6 {[%emt 0:02:17]} 15. Kb1 {[%emt 0:02:46]} O-O-O {[%emt 0:03:53]} 16. cxd5 {[%emt 0:06:20]} exd5 {[%emt 0:01:05]} 17. Qa4 {[%emt 0:01:36]} Kb8 {[%emt 0:00:55]} 18. Rc1 {[%emt 0:01:39]} Rc8 {[%emt 0:02:17]} 19. Bd3 {[%emt 0:04:01]} Qe7 {[%emt 0:03:53]} 20. Qc2 {[%emt 0:06:31]} g6 {[%emt 0:01:54]} 21. a3 {[%emt 0:00:30]} c5 {[%emt 0:04:07]} 22. dxc5 {[%emt 0:02:39]} Nxc5 {[%emt 0:01:04]} 23. Nd4 {[%emt 0:05:09]} Nce4 {[%emt 0:09:26]} 24. Ka2 {[%emt 0:02:00]} Nxc3+ {[%emt 0:01:07]} 25. bxc3 {[%emt 0:00:03]} Ne8 {[%emt 0:05:26]} 26. Qa4 {[%emt 0:03:38]} Nd6 {[%emt 0:01:28]} 27. Nb5 {[%emt 0:00:36]} Nxb5 {[%emt 0:00:49]} 28. Qxb5 {[%emt 0:00:21]} Qf6 {[%emt 0:02:31]} 29. Qb2 {[%emt 0:00:23]} Rc5 {[%emt 0:01:57]} 30. Rc2 {[%emt 0:00:26]} Bc6 {[%emt 0:01:23]} 31. Qb4 {[%emt 0:00:47]} Kb7 {[%emt 0:01:40]} 32. Qd4 {[%emt 0:02:02]} Qe7 {[%emt 0:01:28]} 33. Rb2 {[%emt 0:00:48]} Bd7 {[%emt 0:03:17]} 34. g3 {[%emt 0:03:30]} Be6 {[%emt 0:02:16]} 35. Rb5 {[%emt 0:02:46]} Qc7 {[%emt 0:02:53]} 36. Kb2 {[%emt 0:01:44]} a6 {[%emt 0:02:21]} 1/2-1/2

[Event "Fredericia WIM 2019"]
[Site "Fredericia"]
[Date "2019.06.01"]
[Round "6.7"]
[White "Sahl, Sheila Barth"]
[Black "Keetman, Maaike"]
[Result "0-1"]
[ECO "C16"]
[WhiteElo "2127"]
[BlackElo "2146"]
[Annotator "ChessBase"]
[PlyCount "74"]
[EventDate "2019.05.29"]
[EventType "tourn"]
[EventCountry "DEN"]
[SourceTitle "playchess.com"]
[Source "ChessBase"]
[SourceQuality "1"]
[TimeControl "40/5400+30:1800+30"]

1. e4 {[%emt 0:00:00]} e6 {[%emt 0:00:00]} 2. d4 {[%emt 0:00:00]} d5 {[%emt 0:00:00]} 3. Nc3 {[%emt 0:00:00]} Bb4 {[%emt 0:00:00]} 4. e5 {[%emt 0:00:01]} Ne7 {[%emt 0:00:00]} 5. a3 {[%emt 0:00:24]} Bxc3+ {[%emt 0:00:04]} 6. bxc3 {[%emt 0:00:07]} b6 {[%emt 0:00:05]} 7. Qg4 {[%emt 0:05:47]} Ng6 {[%emt 0:00:14]} 8. h4 {[%emt 0:08:11]} h5 {[%emt 0:00:11]} 9. Qg5 {[%emt 0:00:07]} Qxg5 {[%emt 0:08:53]} 10. hxg5 {[%emt 0:00:17]} Ba6 {[%emt 0:00:29]} 11. Bxa6 {[%emt 0:03:09]} Nxa6 {[%emt 0:00:07]} 12. a4 {[%emt 0:00:32]} c5 {[%emt 0:05:10]} 13. Ne2 {[%emt 0:04:13]} Kd7 {[%emt 0:05:49]} 14. Ng3 {[%emt 0:01:47]} h4 {[%emt 0:00:57]} 15. Ne2 {[%emt 0:02:55]} Rac8 {[%emt 0:07:30]} 16. a5 {[%emt 0:02:07]} b5 {[%emt 0:02:22]} 17. Rb1 {[%emt 0:00:11]} Rb8 {[%emt 0:01:13]} 18. dxc5 {[%emt 0:04:38]} Nxc5 {[%emt 0:05:05]} 19. Be3 {[%emt 0:01:02]} Rhc8 {[%emt 0:02:08]} 20. f3 {[%emt 0:10:00]} a6 {[%emt 0:04:53]} 21. Bd4 {[%emt 0:00:45]} Nb7 {[%emt 0:09:19]} 22. Bb6 {[%emt 0:04:57]} Rc4 {[%emt 0:02:28]} 23. Kd2 {[%emt 0:16:14]} Rbc8 {[%emt 0:08:12]} 24. Ra1 {[%emt 0:19:04]} Nd8 {[%emt 0:04:23]} 25. Raf1 {[%emt 0:03:32]} Nc6 {[%emt 0:05:55]} 26. f4 {[%emt 0:00:18]} Nce7 {[%emt 0:01:14]} 27. Rf3 {[%emt 0:04:18]} Nf5 {[%emt 0:01:23]} 28. Rc1 {[%emt 0:00:24]} Re4 {[%emt 0:04:29]} 29. Nd4 {[%emt 0:03:32]} Ng3 {[%emt 0:02:35]} 30. Nb3 {[%emt 0:01:14]} Re2+ {[%emt 0:09:57]} 31. Kd3 {[%emt 0:01:33]} Rxg2 {[%emt 0:00:04]} 32. Nc5+ {[%emt 0:00:14]} Ke7 {[%emt 0:00:57]} 33. Nxa6 {[%emt 0:02:45]} h3 {[%emt 0:03:16]} 34. Bf2 {[%emt 0:00:06]} Ne4 {[%emt 0:00:41]} 35. Ke2 {[%emt 0:00:45]} Nh4 {[%emt 0:01:39]} 36. Rxh3 {[%emt 0:01:29]} Rxf2+ {[%emt 0:00:24]} 37. Ke1 {[%emt 0:00:04]} Ng2+ {[%emt 0:00:09]} 0-1

[Event "Fredericia WIM 2019"]
[Site "Fredericia"]
[Date "2019.06.01"]
[Round "6.8"]
[White "Sucikova, Svetlana"]
[Black "Stolberg-Rohr, Thomine"]
[Result "1-0"]
[ECO "A00"]
[WhiteElo "2110"]
[BlackElo "2025"]
[Annotator "ChessBase"]
[PlyCount "67"]
[EventDate "2019.05.29"]
[EventType "tourn"]
[EventCountry "DEN"]
[SourceTitle "playchess.com"]
[Source "ChessBase"]
[SourceQuality "1"]
[TimeControl "40/5400+30:1800+30"]

1. e3 {[%emt 0:00:00]} g6 {[%emt 0:00:13]} 2. c4 {[%emt 0:00:07]} c5 {[%emt 0:00:48]} 3. Nc3 {[%emt 0:00:08]} Bg7 {[%emt 0:00:23]} 4. Nf3 {[%emt 0:00:56]} Nc6 {[%emt 0:00:15]} 5. Be2 {[%emt 0:01:33]} e6 {[%emt 0:02:19]} 6. d4 {[%emt 0:03:52]} cxd4 {[%emt 0:02:33]} 7. exd4 {[%emt 0:00:14]} d5 {[%emt 0:00:55]} 8. cxd5 {[%emt 0:04:08]} exd5 {[%emt 0:00:19]} 9. Qb3 {[%emt 0:02:12]} Nge7 {[%emt 0:01:48]} 10. Bf4 {[%emt 0:07:01]} O-O {[%emt 0:08:19]} 11. Rd1 {[%emt 0:01:11]} Nf5 {[%emt 0:13:10]} 12. Nb5 {[%emt 0:11:06]} Qa5+ {[%emt 0:06:42]} 13. Qc3 {[%emt 0:02:03]} Be6 {[%emt 0:08:05]} 14. O-O {[%emt 0:06:10]} a6 {[%emt 0:12:31]} 15. Qxa5 {[%emt 0:08:40]} Nxa5 {[%emt 0:00:14]} 16. Nc7 {[%emt 0:00:07]} Rac8 {[%emt 0:00:39]} 17. g4 {[%emt 0:00:39]} Ne7 {[%emt 0:07:24]} 18. h3 {[%emt 0:16:07]} Nac6 {[%emt 0:02:28]} 19. Rfe1 {[%emt 0:01:03]} h6 {[%emt 0:11:11]} 20. Bf1 {[%emt 0:00:46]} Kh7 {[%emt 0:06:08]} 21. Bg2 {[%emt 0:00:17]} Ng8 {[%emt 0:02:13]} 22. Bh2 {[%emt 0:02:36]} Nf6 {[%emt 0:02:50]} 23. Re3 {[%emt 0:08:15]} Ne4 {[%emt 0:01:42]} 24. Rb3 {[%emt 0:00:10]} Na5 {[%emt 0:02:31]} 25. Rb6 {[%emt 0:01:04]} Bf6 {[%emt 0:01:45]} 26. b4 {[%emt 0:10:04]} Rxc7 {[%emt 0:02:56]} 27. Bxc7 {[%emt 0:00:50]} Rc8 {[%emt 0:00:42]} 28. Rxe6 {[%emt 0:01:19]} Rxc7 {[%emt 0:01:32]} 29. Rxf6 {[%emt 0:00:08]} Nc4 {[%emt 0:00:10]} 30. Rf4 {[%emt 0:01:19]} Nc3 {[%emt 0:00:19]} 31. Re1 {[%emt 0:00:02]} Nxa2 {[%emt 0:00:57]} 32. Ne5 {[%emt 0:00:13]} Nxb4 {[%emt 0:00:21]} 33. Rxf7+ {[%emt 0:04:21]} Rxf7 {[%emt 0:00:05]} 34. Nxf7 {[%emt 0:00:04]} 1-0

[Event "Fredericia WIM 2019"]
[Site "Fredericia"]
[Date "2019.06.01"]
[Round "6.9"]
[White "Mayrhuber, Nikola"]
[Black "Kubicka, Anna"]
[Result "0-1"]
[ECO "A57"]
[WhiteElo "1985"]
[BlackElo "2142"]
[Annotator "ChessBase"]
[PlyCount "156"]
[EventDate "2019.05.29"]
[EventType "tourn"]
[EventCountry "DEN"]
[SourceTitle "playchess.com"]
[Source "ChessBase"]
[SourceQuality "1"]
[TimeControl "40/5400+30:1800+30"]

1. d4 {[%emt 0:00:00]} Nf6 {[%emt 0:00:00]} 2. c4 {[%emt 0:00:00]} c5 {[%emt 0:00:00]} 3. d5 {[%emt 0:00:00]} b5 {[%emt 0:00:00]} 4. Nf3 {[%emt 0:00:00]} g6 {[%emt 0:00:10]} 5. Qc2 {[%emt 0:00:18]} bxc4 {[%emt 0:00:31]} 6. e4 {[%emt 0:00:14]} d6 {[%emt 0:00:05]} 7. Bxc4 {[%emt 0:00:17]} Bg7 {[%emt 0:00:05]} 8. O-O {[%emt 0:01:22]} O-O {[%emt 0:00:08]} 9. h3 {[%emt 0:00:33]} Ba6 {[%emt 0:00:48]} 10. Nbd2 {[%emt 0:05:02]} Nfd7 {[%emt 0:03:23]} 11. Rb1 {[%emt 0:03:10]} Nb6 {[%emt 0:04:44]} 12. b3 {[%emt 0:09:45]} Bxc4 {[%emt 0:13:55]} 13. Nxc4 {[%emt 0:03:51]} Na6 {[%emt 0:00:44]} 14. a3 {[%emt 0:00:43]} Nxc4 {[%emt 0:05:17]} 15. Qxc4 {[%emt 0:05:57]} Qa5 {[%emt 0:05:28]} 16. b4 {[%emt 0:07:23]} Qa4 {[%emt 0:05:05]} 17. Bg5 {[%emt 0:10:28]} cxb4 {[%emt 0:06:27]} 18. axb4 {[%emt 0:02:45]} Rfc8 {[%emt 0:02:49]} 19. Qb3 {[%emt 0:03:22]} Qd7 {[%emt 0:02:43]} 20. Qd3 {[%emt 0:02:25]} Nc7 {[%emt 0:10:11]} 21. Nd4 {[%emt 0:04:19]} Bxd4 {[%emt 0:01:29]} 22. Qxd4 {[%emt 0:00:04]} Nb5 {[%emt 0:00:07]} 23. Qe3 {[%emt 0:06:07]} Rc3 {[%emt 0:01:16]} 24. Qe2 {[%emt 0:01:11]} Rac8 {[%emt 0:02:50]} 25. Rfc1 {[%emt 0:03:28]} Qb7 {[%emt 0:04:40]} 26. Bd2 {[%emt 0:05:08]} Nd4 {[%emt 0:03:31]} 27. Qd1 {[%emt 0:01:50]} Rxc1 {[%emt 0:09:17]} 28. Rxc1 {[%emt 0:00:11]} Rxc1 {[%emt 0:01:10]} 29. Bxc1 {[%emt 0:01:16]} Qxb4 {[%emt 0:01:41]} 30. Be3 {[%emt 0:10:03]} Nb5 {[%emt 0:03:02]} 31. Qg4 {[%emt 0:01:05]} f5 {[%emt 0:07:35]} 32. Qe2 {[%emt 0:03:23]} a6 {[%emt 0:00:16]} 33. exf5 {[%emt 0:02:32]} Qb1+ {[%emt 0:00:06]} 34. Kh2 {[%emt 0:00:04]} Qxf5 {[%emt 0:00:04]} 35. Qa2 {[%emt 0:01:09]} Nc7 {[%emt 0:01:57]} 36. Qa5 {[%emt 0:02:10]} Ne8 {[%emt 0:01:56]} 37. Qxa6 {[%emt 0:03:26]} Qxd5 {[%emt 0:00:06]} 38. Qc8 {[%emt 0:01:32]} Kf7 {[%emt 0:00:04]} 39. Qg4 {[%emt 0:01:17]} Nf6 {[%emt 0:00:54]} 40. Qh4 {[%emt 0:00:54]} Qe4 {[%emt 0:01:03]} 41. Qh6 {[%emt 0:04:53]} Qe5+ {[%emt 0:08:38]} 42. Kg1 {[%emt 0:00:56]} Qh5 {[%emt 0:00:17]} 43. Qf4 {[%emt 0:00:23]} Qf5 {[%emt 0:00:20]} 44. Qh6 {[%emt 0:01:35]} Kg8 {[%emt 0:00:39]} 45. Bd4 {[%emt 0:01:04]} e5 {[%emt 0:00:23]} 46. Ba7 {[%emt 0:03:23]} Qf4 {[%emt 0:04:32]} 47. Qxf4 {[%emt 0:03:49]} exf4 {[%emt 0:00:20]} 48. Bb8 {[%emt 0:00:11]} Ne8 {[%emt 0:00:06]} 49. g3 {[%emt 0:05:10]} fxg3 {[%emt 0:00:55]} 50. fxg3 {[%emt 0:00:04]} Kf7 {[%emt 0:00:03]} 51. Kf2 {[%emt 0:00:24]} Ke6 {[%emt 0:00:05]} 52. Ke3 {[%emt 0:00:13]} Ke5 {[%emt 0:01:18]} 53. Ba7 Nc7 {[%emt 0:04:22]} 54. Bd4+ {[%emt 0:02:34]} Kf5 {[%emt 0:01:28]} 55. Kf3 {[%emt 0:01:02]} Nd5 {[%emt 0:02:35]} 56. g4+ {[%emt 0:03:21]} Ke6 {[%emt 0:00:58]} 57. Ke4 {[%emt 0:01:47]} g5 {[%emt 0:04:01]} 58. Kf3 {[%emt 0:01:52]} Nf6 {[%emt 0:06:39]} 59. h4 {[%emt 0:00:45]} gxh4 {[%emt 0:00:28]} 60. g5 {[%emt 0:00:10]} Nh5 {[%emt 0:02:05]} 61. Kg4 {[%emt 0:04:30]} Ng3 {[%emt 0:00:16]} 62. Bg1 {[%emt 0:00:51]} Nf5 {[%emt 0:00:29]} 63. Kh5 {[%emt 0:00:40]} d5 {[%emt 0:00:20]} 64. Kg4 {[%emt 0:02:12]} d4 {[%emt 0:01:10]} 65. Bxd4 {[%emt 0:00:14]} Nxd4 {[%emt 0:00:10]} 66. Kxh4 {[%emt 0:00:05]} Kf5 {[%emt 0:01:35]} 67. Kg3 {[%emt 0:01:22]} Kxg5 {[%emt 0:00:05]} 68. Kf2 {[%emt 0:00:22]} Kg4 {[%emt 0:00:11]} 69. Kg2 {[%emt 0:00:09]} h5 {[%emt 0:00:05]} 70. Kh2 {[%emt 0:00:16]} Nf3+ {[%emt 0:00:54]} 71. Kh1 {[%emt 0:00:10]} Ne1 {[%emt 0:00:34]} 72. Kh2 {[%emt 0:00:25]} Kh4 {[%emt 0:00:05]} 73. Kg1 {[%emt 0:00:25]} Kg3 {[%emt 0:00:04]} 74. Kh1 {[%emt 0:00:06]} h4 {[%emt 0:00:11]} 75. Kg1 {[%emt 0:00:06]} Nd3 {[%emt 0:00:14]} 76. Kh1 {[%emt 0:00:10]} h3 {[%emt 0:00:14]} 77. Kg1 {[%emt 0:00:04]} h2+ {[%emt 0:00:06]} 78. Kh1 {[%emt 0:00:03]} Nf2# {[%emt 0:00:04]} 0-1

[Event "Fredericia WIM 2019"]
[Site "Fredericia"]
[Date "2019.06.01"]
[Round "6.10"]
[White "Kakulidis, Ellen"]
[Black "Nilssen, Ellen Fredericia"]
[Result "1/2-1/2"]
[ECO "A05"]
[WhiteElo "2014"]
[BlackElo "2129"]
[Annotator "ChessBase"]
[PlyCount "50"]
[EventDate "2019.05.29"]
[EventType "tourn"]
[EventCountry "DEN"]
[SourceTitle "playchess.com"]
[Source "ChessBase"]
[SourceQuality "1"]
[TimeControl "40/5400+30:1800+30"]

1. Nf3 {[%emt 0:00:00]} Nf6 {[%emt 0:00:00]} 2. c4 {[%emt 0:00:00]} g6 {[%emt 0:00:28]} 3. Nc3 {[%emt 0:00:00]} d5 {[%emt 0:00:44]} 4. cxd5 {[%emt 0:00:00]} Nxd5 {[%emt 0:00:27]} 5. e4 {[%emt 0:00:04]} Nxc3 {[%emt 0:00:47]} 6. dxc3 {[%emt 0:00:31]} Qxd1+ {[%emt 0:06:26]} 7. Kxd1 {[%emt 0:00:21]} Bg7 {[%emt 0:00:03]} 8. Bf4 {[%emt 0:00:09]} c6 {[%emt 0:02:15]} 9. Kc2 {[%emt 0:03:13]} Nd7 {[%emt 0:01:11]} 10. Bc4 {[%emt 0:02:43]} b5 {[%emt 0:07:09]} 11. Bb3 {[%emt 0:07:28]} Nc5 {[%emt 0:02:57]} 12. Nd2 {[%emt 0:01:41]} O-O {[%emt 0:07:15]} 13. Be3 {[%emt 0:06:54]} Nxb3 {[%emt 0:06:43]} 14. axb3 {[%emt 0:07:12]} a5 {[%emt 0:04:15]} 15. Bb6 {[%emt 0:02:33]} a4 {[%emt 0:02:21]} 16. bxa4 {[%emt 0:01:02]} bxa4 {[%emt 0:00:07]} 17. Bc5 {[%emt 0:01:46]} Re8 {[%emt 0:06:36]} 18. Ra3 {[%emt 0:07:59]} Bh6 {[%emt 0:10:01]} 19. Rha1 {[%emt 0:03:48]} Ra5 {[%emt 0:08:39]} 20. Be3 {[%emt 0:07:04]} Bxe3 {[%emt 0:00:33]} 21. fxe3 {[%emt 0:00:05]} Rh5 {[%emt 0:01:22]} 22. Rh1 {[%emt 0:12:12]} Ra5 {[%emt 0:00:11]} 23. Rha1 {[%emt 0:01:10]} Rh5 {[%emt 0:00:07]} 24. Rh1 {[%emt 0:08:12]} Ra5 {[%emt 0:00:02]} 25. Rha1 {[%emt 0:08:36]} Rh5 {[%emt 0:00:44]} 1/2-1/2

[Event "Fredericia WIM 2019"]
[Site "Fredericia"]
[Date "2019.06.01"]
[Round "7.6"]
[White "Kubicka, Anna"]
[Black "Kanakova, Natalie"]
[Result "1/2-1/2"]
[ECO "C10"]
[WhiteElo "2142"]
[BlackElo "2205"]
[Annotator "ChessBase"]
[PlyCount "38"]
[EventDate "2019.05.29"]
[EventType "tourn"]
[EventCountry "DEN"]
[SourceTitle "playchess.com"]
[Source "ChessBase"]
[SourceQuality "1"]
[TimeControl "40/5400+30:1800+30"]

1. e4 {[%emt 1:30:30]} e6 {[%emt 1:30:30]} 2. d4 {[%emt 0:00:30]} d5 {[%emt 0:00:30]} 3. Nd2 {[%emt 0:00:30]} dxe4 {[%emt 0:00:30]} 4. Nxe4 {[%emt 0:00:00]} Bd7 {[%emt 0:00:00]} 5. Nf3 {[%emt 0:00:00]} Bc6 {[%emt 0:00:00]} 6. Bd3 {[%emt 0:00:00]} Nd7 {[%emt 0:00:00]} 7. O-O {[%emt 0:00:00]} Ngf6 {[%emt 0:00:00]} 8. Nxf6+ {[%emt 0:00:00]} Qxf6 {[%emt 0:00:00]} 9. Be2 {[%emt 0:00:00]} Bd6 {[%emt 0:00:00]} 10. c4 {[%emt 0:00:00]} Bxf3 {[%emt 0:00:00]} 11. Bxf3 {[%emt 0:00:00]} c6 {[%emt 0:00:00]} 12. Re1 {[%emt 0:00:00]} O-O {[%emt 0:00:00]} 13. Be3 {[%emt 0:00:00]} Rfd8 {[%emt 0:00:00]} 14. Qb3 {[%emt 0:00:00]} Rab8 {[%emt 0:00:00]} 15. Qa4 {[%emt 0:00:00]} Ra8 {[%emt 0:00:00]} 16. Qb3 {[%emt 0:00:00]} Rab8 {[%emt 0:00:00]} 17. Qa4 {[%emt 0:00:00]} Ra8 {[%emt 0:00:00]} 18. Qb3 {[%emt 0:00:00]} Rab8 {[%emt 0:00:00]} 19. Qa4 {[%emt 0:00:00]} Ra8 {[%emt 0:00:00]} 1/2-1/2

[Event "Fredericia WIM 2019"]
[Site "Fredericia"]
[Date "2019.06.01"]
[Round "7.7"]
[White "Keetman, Maaike"]
[Black "Sucikova, Svetlana"]
[Result "1-0"]
[ECO "B18"]
[WhiteElo "2146"]
[BlackElo "2110"]
[Annotator "ChessBase"]
[PlyCount "59"]
[EventDate "2019.05.29"]
[EventType "tourn"]
[EventCountry "DEN"]
[SourceTitle "playchess.com"]
[Source "ChessBase"]
[SourceQuality "1"]
[TimeControl "40/5400+30:1800+30"]

1. e4 {[%emt 0:00:00]} c6 {[%emt 0:00:00]} 2. d4 {[%emt 0:00:00]} d5 {[%emt 0:00:45]} 3. Nd2 {[%emt 0:00:01]} dxe4 {[%emt 0:01:02]} 4. Nxe4 {[%emt 0:00:14]} Bf5 {[%emt 0:00:34]} 5. Ng3 {[%emt 0:00:11]} Bg6 {[%emt 0:00:39]} 6. Nh3 {[%emt 0:00:11]} Nf6 {[%emt 0:01:02]} 7. Nf4 {[%emt 0:01:17]} e5 {[%emt 0:02:38]} 8. dxe5 {[%emt 0:00:23]} Qa5+ {[%emt 0:00:08]} 9. c3 {[%emt 0:00:19]} Qxe5+ {[%emt 0:00:07]} 10. Be2 {[%emt 0:00:14]} Be7 {[%emt 0:04:26]} 11. O-O {[%emt 0:00:55]} O-O {[%emt 0:00:27]} 12. Be3 {[%emt 0:10:46]} Nbd7 {[%emt 0:02:53]} 13. Nxg6 {[%emt 0:03:38]} hxg6 {[%emt 0:00:40]} 14. Qc2 {[%emt 0:02:41]} Nd5 {[%emt 0:02:10]} 15. Bd4 {[%emt 0:04:02]} Qc7 {[%emt 0:01:07]} 16. Bf3 {[%emt 0:08:29]} N7f6 {[%emt 0:08:30]} 17. Rfe1 {[%emt 0:02:03]} Bd6 {[%emt 0:01:05]} 18. c4 {[%emt 0:04:31]} Nb4 {[%emt 0:33:31]} 19. Qc3 {[%emt 0:01:33]} c5 {[%emt 0:00:06]} 20. Bxf6 {[%emt 0:02:42]} gxf6 {[%emt 0:00:05]} 21. Qxf6 {[%emt 0:13:38]} Nd3 {[%emt 0:00:09]} 22. Bd5 {[%emt 0:06:19]} Kh7 {[%emt 0:05:01]} 23. Re4 {[%emt 0:04:03]} Nf4 {[%emt 0:00:03]} 24. Rae1 {[%emt 0:03:02]} Rab8 {[%emt 0:03:56]} 25. Re7 {[%emt 0:07:21]} Bxe7 {[%emt 0:05:12]} 26. Rxe7 {[%emt 0:00:07]} Rbe8 {[%emt 0:01:13]} 27. Nf5 {[%emt 0:04:22]} Nh5 {[%emt 0:00:51]} 28. Qg5 {[%emt 0:00:55]} Rxe7 {[%emt 0:01:03]} 29. Qh6+ {[%emt 0:00:17]} Kg8 {[%emt 0:00:08]} 30. Qxg6+ 1-0

[Event "Fredericia WIM 2019"]
[Site "Fredericia"]
[Date "2019.06.01"]
[Round "7.8"]
[White "Guindy, Esmat Susanne"]
[Black "Sahl, Sheila Barth"]
[Result "1/2-1/2"]
[ECO "D72"]
[WhiteElo "2156"]
[BlackElo "2127"]
[Annotator "ChessBase"]
[PlyCount "93"]
[EventDate "2019.05.29"]
[EventType "tourn"]
[EventCountry "DEN"]
[SourceTitle "playchess.com"]
[Source "ChessBase"]
[SourceQuality "1"]
[TimeControl "40/5400+30:1800+30"]

1. d4 {[%emt 0:02:29]} Nf6 {[%emt 0:00:00]} 2. c4 {[%emt 0:00:17]} g6 {[%emt 0:00:00]} 3. g3 {[%emt 0:00:25]} d5 {[%emt 0:00:08]} 4. cxd5 {[%emt 0:01:29]} Nxd5 {[%emt 0:00:09]} 5. e4 {[%emt 0:01:44]} Nb6 {[%emt 0:00:31]} 6. Bg2 {[%emt 0:01:07]} Bg7 {[%emt 0:00:30]} 7. Ne2 {[%emt 0:00:23]} c5 {[%emt 0:07:23]} 8. d5 {[%emt 0:04:41]} e6 {[%emt 0:00:56]} 9. O-O {[%emt 0:01:09]} exd5 {[%emt 0:00:23]} 10. exd5 {[%emt 0:00:06]} O-O {[%emt 0:00:33]} 11. Nbc3 {[%emt 0:00:44]} Bf5 {[%emt 0:07:27]} 12. Be3 {[%emt 0:05:56]} Na6 {[%emt 0:00:38]} 13. b3 {[%emt 0:02:41]} Qd7 {[%emt 0:04:41]} 14. Re1 {[%emt 0:02:32]} Nc8 {[%emt 0:07:26]} 15. Rc1 {[%emt 0:04:39]} Nd6 {[%emt 0:00:38]} 16. Nf4 {[%emt 0:04:24]} b6 {[%emt 0:02:35]} 17. a3 {[%emt 0:03:18]} Rfe8 {[%emt 0:03:49]} 18. h3 {[%emt 0:03:00]} h5 {[%emt 0:01:54]} 19. Kh2 {[%emt 0:00:20]} Nc7 {[%emt 0:05:30]} 20. a4 {[%emt 0:04:41]} a5 {[%emt 0:04:32]} 21. f3 {[%emt 0:01:08]} Qd8 {[%emt 0:07:11]} 22. Qd2 {[%emt 0:06:23]} Be5 {[%emt 0:08:01]} 23. Kg1 {[%emt 0:03:04]} Bc8 {[%emt 0:02:22]} 24. Nfe2 {[%emt 0:05:19]} Bb7 {[%emt 0:01:54]} 25. Bg5 {[%emt 0:05:26]} Qd7 {[%emt 0:14:37]} 26. g4 {[%emt 0:02:09]} f6 {[%emt 0:07:35]} 27. Bf4 {[%emt 0:02:10]} hxg4 {[%emt 0:03:50]} 28. fxg4 {[%emt 0:00:12]} g5 {[%emt 0:00:37]} 29. Bxe5 {[%emt 0:00:54]} Rxe5 {[%emt 0:00:02]} 30. Ng3 {[%emt 0:00:51]} Qe7 {[%emt 0:01:00]} 31. Nh5 {[%emt 0:02:13]} Rf8 {[%emt 0:00:03]} 32. Rxe5 {[%emt 0:04:09]} Qxe5 {[%emt 0:00:07]} 33. Re1 {[%emt 0:02:20]} Qd4+ {[%emt 0:01:33]} 34. Qxd4 {[%emt 0:00:08]} cxd4 {[%emt 0:00:02]} 35. Ne4 {[%emt 0:00:34]} Nxe4 {[%emt 0:02:10]} 36. Rxe4 {[%emt 0:00:29]} Bxd5 {[%emt 0:01:31]} 37. Rxd4 {[%emt 0:00:53]} Bxb3 {[%emt 0:03:21]} 38. Rd6 {[%emt 0:01:00]} Bxa4 {[%emt 0:02:24]} 39. Rxb6 {[%emt 0:01:19]} Ne8 {[%emt 0:00:46]} 40. Ra6 {[%emt 0:03:05]} Bc2 {[%emt 0:00:16]} 41. Bc6 {[%emt 0:34:45]} Kf7 {[%emt 0:06:32]} 42. Ra7+ {[%emt 0:00:00]} Kg6 {[%emt 0:00:28]} 43. Ra8 {[%emt 0:00:00]} Kf7 {[%emt 0:01:03]} 44. Rxa5 {[%emt 0:00:00]} Bg6 {[%emt 0:05:14]} 45. Ra7+ {[%emt 0:00:00]} Kg8 {[%emt 0:00:38]} 46. Ng3 {[%emt 0:00:00]} Ng7 {[%emt 0:00:50]} 47. Bd5+ {[%emt 0:00:00]} 1/2-1/2

[Event "Fredericia WIM 2019"]
[Site "Fredericia"]
[Date "2019.06.01"]
[Round "7.9"]
[White "Nilssen, Ellen Fredericia"]
[Black "Mayrhuber, Nikola"]
[Result "1-0"]
[ECO "D20"]
[WhiteElo "2129"]
[BlackElo "1985"]
[Annotator "ChessBase"]
[PlyCount "47"]
[EventDate "2019.05.29"]
[EventType "tourn"]
[EventCountry "DEN"]
[SourceTitle "playchess.com"]
[Source "ChessBase"]
[SourceQuality "1"]
[TimeControl "40/5400+30:1800+30"]

1. d4 {[%emt 0:00:00]} d5 {[%emt 0:00:00]} 2. c4 {[%emt 0:00:00]} dxc4 {[%emt 0:00:00]} 3. e3 {[%emt 0:00:00]} e5 {[%emt 0:01:15]} 4. Bxc4 {[%emt 0:02:38]} exd4 {[%emt 0:00:13]} 5. exd4 {[%emt 0:00:28]} Bd6 {[%emt 0:03:32]} 6. Ne2 {[%emt 0:06:31]} Nf6 {[%emt 0:01:17]} 7. O-O {[%emt 0:03:40]} O-O {[%emt 0:01:09]} 8. Nbc3 {[%emt 0:00:59]} Nc6 {[%emt 0:01:59]} 9. Bb3 {[%emt 0:09:08]} Re8 {[%emt 0:08:48]} 10. h3 {[%emt 0:08:26]} h6 {[%emt 0:01:51]} 11. Qd3 {[%emt 0:08:53]} Nb4 {[%emt 0:04:04]} 12. Qf3 {[%emt 0:00:33]} Bd7 {[%emt 0:07:57]} 13. Rd1 {[%emt 0:13:37]} Qe7 {[%emt 0:05:10]} 14. Ng3 {[%emt 0:06:29]} a5 {[%emt 0:06:06]} 15. a3 {[%emt 0:03:50]} Nc6 {[%emt 0:03:26]} 16. Be3 {[%emt 0:01:42]} Be6 {[%emt 0:05:56]} 17. Bc2 {[%emt 0:00:09]} Bc4 {[%emt 0:01:36]} 18. Nf5 {[%emt 0:03:20]} Qe6 {[%emt 0:04:50]} 19. d5 {[%emt 0:07:23]} Qe5 {[%emt 0:06:24]} 20. g3 {[%emt 0:00:01]} Na7 {[%emt 0:06:51]} 21. Bf4 {[%emt 0:00:26]} Be2 {[%emt 0:00:03]} 22. Qg2 {[%emt 0:02:47]} Bxd1 {[%emt 0:00:05]} 23. Bxe5 {[%emt 0:00:07]} Bxc2 {[%emt 0:00:05]} 24. Nxh6+ {[%emt 0:03:34]} 1-0